Cogmind - Beta 16.1 @@@ ROGUE MODE // 2026.04.06 @ 11:51:19 Player: Yggdrasil Burnes Result: Self-destructed Performance ------------- Evolutions (2) 1000 Regions Visited (4) 800 Robots Destroyed (24) 120 Value Destroyed (704) 704 Prototype IDs (3) 60 Alien Tech Used (0) 0 Bonus (0) 0 TOTAL SCORE: 2684 Bonus ------- None Cogmind --------- Core Integrity 460/550 Matter 218/300 Energy 22/100 System Corruption 0% Temperature Warm (125) Movement Rolling (105) Ox1 Location -8/Materials Parts ------- > --- POWER (2) -------- (None) > --- PROPULSION (3) --- Aluminum Leg Armored Wheel Armored Wheel > --- UTILITY (3) ------ Heat Sink Large Storage Unit Targeting Computer > --- WEAPON (3) ------- Spread Laser Plasma Cannon Plasma Cannon > --- INVENTORY (15) --- Aluminum Leg Armored Wheel Large Storage Unit Improved Sensor Array Targeting Computer Improved Medium Armor Plating Improved Medium Armor Plating Plasma Cannon Plasma Cannon Peak State ------------ > --- POWER ------------ (None) > --- PROPULSION ------- Aluminum Leg Armored Wheel Armored Wheel > --- UTILITY ---------- Heat Sink Large Storage Unit Targeting Computer > --- WEAPON ----------- Spread Laser Plasma Cannon Plasma Cannon > --- INVENTORY -------- Aluminum Leg Armored Wheel Large Storage Unit Improved Sensor Array Targeting Computer Improved Medium Armor Plating Improved Medium Armor Plating Plasma Cannon Plasma Cannon [Rating: 20] Favorites ----------- Power Ion Engine Engine Ion Engine Propulsion Aluminum Leg Leg Aluminum Leg Wheel Armored Wheel Utility Large Storage Unit Device Heat Sink Storage Large Storage Unit Processor Targeting Computer Protection Light Armor Plating Weapon EM Pulse Gun Energy Gun EM Pulse Gun Energy Cannon Plasma Cannon Ballistic Cannon Light Cannon Build | -11 -10 -10 -9 -8 ------- Run | Yrd Mat Min Mat Mat Slots Evolved 4 | . . . 2 2 Power 1 | . . . 1 . Propulsion 1 | . . . . 1 Utility 1 | . . . 1 . Weapon 1 | . . . . 1 Parts Attached 24 | 7 1 4 3 9 Power 3 | 2 . . 1 . Engine 3 | 2 . . 1 . Core . | . . . . . Reactor . | . . . . . Propulsion 8 | 2 . 1 . 5 Treads . | . . . . . Leg 6 | 2 . 1 . 3 Wheel 2 | . . . . 2 Hover . | . . . . . Flight . | . . . . . Utility 6 | 1 1 2 1 1 Device 1 | . . . 1 . Storage 3 | 1 . 1 . 1 Processor 1 | . . 1 . . Hackware . | . . . . . Protection 1 | . 1 . . . Artifact . | . . . . . Weapon 7 | 2 . 1 1 3 Energy Gun 4 | 2 . 1 . 1 Energy Cannon 2 | . . . . 2 Ballistic Gun . | . . . . . Ballistic Cannon 1 | . . . 1 . Launcher . | . . . . . Special Weapon . | . . . . . Impact Weapon . | . . . . . Slashing Weapon . | . . . . . Piercing Weapon . | . . . . . Special Melee Weapon . | . . . . . Unidentified Prototypes . | . . . . . Parts Lost 11 | . . 3 2 6 Power 3 | . . . 1 2 Propulsion 3 | . . 1 . 2 Utility 1 | . . 1 . . Weapon 4 | . . 1 1 2 Highest Loss Streak 6 | . . 3 2 6 To Critical Strikes . | . . . . . Average Backups 9 | 2 5 7 10 13 Power . | . 1 1 . . Propulsion 4 | 1 2 2 6 6 Utility 2 | . 1 1 1 4 Weapon 2 | . . 1 2 3 Tool/Special . | . . . . . Unused Backups 12 | . . . . 12 Power . | . . . . . Propulsion 3 | . . . . 3 Utility 6 | . . . . 6 Weapon 3 | . . . . 3 Tool/Special . | . . . . . Average Slot Usage (%) 96 | . 98 99 92 97 Engine 16 | . 14 14 20 16 Leg 26 | . 28 27 22 26 Device 3 | . . . 5 9 Storage 12 | . 14 14 11 9 Processor 4 | . . . 11 9 Protection 7 | . 12 13 . . Energy Gun 22 | . 28 27 14 17 Ballistic Cannon 3 | . . . 7 8 Peak Build Rating 20 | 6 7 7 11 20 Average Rating 9 | 4 6 6 9 15 On Entrance 6 | . 6 7 7 11 Avg Prop Armor Cover (%) . | . . . . . Naked Turns . | . . . . . Heaviest Build 38 | 14 17 32 35 38 Greatest Support 30 | 20 20 20 20 30 Greatest Overweight (x) 2 | . . 2 1 1 Average Overweight (x) . | . . . 1 1 Largest Inventory Capacity 15 | 8 8 15 15 15 Average Capacity 13 | 7 8 13 15 15 Most Carried 15 | 3 8 8 14 15 Average Carried 9 | 1 5 7 10 13 Final Capacity 15 | 8 8 15 15 15 Final Carried 12 | 3 8 5 12 9 Class Distribution -------------------- 71% | Mutant 14% | Scavenger-Gunner 13% | Scavenger-Mutant Dominant Class ---------------- Mutant | -10/Materials Mutant | -10/Mines Mutant | -9/Materials Scavenger-Gunner | -8/Materials Resources | -11 -10 -10 -9 -8 ----------- Run | Yrd Mat Min Mat Mat Matter Collected 449 | 191 89 40 99 30 Remotely . | . . . . . Salvage Created 678 | . 208 29 279 162 Parts 40 | . 11 3 11 15 Haulers Intercepted . | . . . . . Recyclers Shooed . | . . . . . Parts Field Recycled . | . . . . . Retrieved Matter . | . . . . . Parts Self-Destructed . | . . . . . Prevented . | . . . . . Parts Restored . | . . . . . Kills | -11 -10 -10 -9 -8 ------- Run | Yrd Mat Min Mat Mat Combat Hostiles Destroyed 21 | . 4 3 6 8 Guns 11 | . 2 2 2 5 Cannons 7 | . . . 4 3 AOE 3 | . 2 1 . . Classes Destroyed 5 | . 2 1 1 1 Watcher 3 | . 1 . 2 . Swarmer 8 | . . 3 . 5 Grunt 11 | . 4 . 5 2 Sentry 1 | . . . 1 . Hunter 1 | . . . . 1 Best Kill Streak 8 | . 3 3 3 8 Combat Bots Only 8 | . 3 3 3 8 Max Kills in Single Turn 2 | . 2 1 1 2 Gunslinging . | . . . . . Exploded 2 | . 2 1 . . Melee . | . . . . . Uniques/NPCs Destroyed . | . . . . . Combat | -11 -10 -10 -9 -8 -------- Run | Yrd Mat Min Mat Mat Hostile Shots Fired 130 | . 7 33 42 48 Missed 26 | . 3 10 7 6 Hits 104 | . 4 23 35 42 Projectile 104 | . 4 23 35 42 AOE 4 | . . 4 . . Critical Strikes 1 | . . . . 1 Damage Taken 1388 | . 60 348 449 531 Core 263 | . 24 35 114 90 Absorbed by Shields . | . . . . . Core Remaining (%) 82 | 100 . 76 71 . Volleys Fired 59 | . 9 11 24 15 Largest 3 | . 2 2 2 3 Hottest 225 | . 80 80 80 225 Shots Fired 126 | . 18 21 45 42 Gun 93 | . 18 21 29 25 Cannon 33 | . . . 16 17 Launcher . | . . . . . Special . | . . . . . Kinetic 29 | . . . 16 13 Thermal 52 | . . . 23 29 Explosive . | . . . . . Electromagnetic 45 | . 18 21 6 . Robot Hit Streak 10 | . 2 3 7 10 Robot Miss Streak 6 | . 3 2 3 6 Penetration Max . | . . . . . Secondary Targets 1 | . . 1 . . Max Gunslinging Chain 1 | . . 1 . . Shots Hit Robots 74 | . 7 8 33 26 Core Hits 45 | . 8 3 15 19 Critical Kills . | . . . . . Critical Parts Destroyed . | . . . . . Critical Strikes 1 | . . . 1 . Blast 1 | . . . 1 . Melee Attacks . | . . . . . Impact . | . . . . . Slashing . | . . . . . Piercing . | . . . . . Sneak Attacks . | . . . . . Combat Hostiles . | . . . . . Follow-up Attacks . | . . . . . Damage Inflicted 1276 | . 191 223 443 419 Guns 688 | . 107 99 232 250 Cannons 380 | . . . 211 169 Explosions 208 | . 84 124 . . Melee . | . . . . . Ramming . | . . . . . Kinetic 329 | . . . 211 118 Thermal 695 | . 84 124 186 301 Explosive . | . . . . . Electromagnetic 252 | . 107 99 46 . Impact . | . . . . . Slashing . | . . . . . Piercing . | . . . . . Highest Corruption . | . . . . . Average Corruption . | . . . . . Corruption Purged . | . . . . . Corruption Blocked . | . . . . . Overload Shots . | . . . . . Overflow Damage 9 | . . 6 . 3 Projectiles 3 | . . . . 3 Explosions 6 | . . 6 . . Melee . | . . . . . Knockbacks 2 | . . . 1 1 Impact . | . . . . . Kinetic 2 | . . . 1 1 Secondary . | . . . . . Self-Inflicted Damage 34 | . 15 19 . . Shots 2 | . 1 1 . . Rammed . | . . . . . Targets Rammed . | . . . . . Kicked . | . . . . . Crushed . | . . . . . Highest Temperature 223 | . 117 223 113 198 Average Temperature 55 | . 41 96 32 60 Received Heat Transfer 426 | . 24 . 249 153 Siege Activations . | . . . . . Martial Activations . | . . . . . Shielding Activations . | . . . . . Robots Disrupted . | . . . . . Combat Hostiles . | . . . . . Robots Corrupted . | . . . . . Combat Hostiles . | . . . . . Parts Fried . | . . . . . Impact Corruptions . | . . . . . Robots Melted . | . . . . . Combat Hostiles . | . . . . . Parts Melted . | . . . . . Heat Transferred 1185 | . 100 150 425 510 Parts Sabotaged . | . . . . . Parts Stolen . | . . . . . Parts Stripped . | . . . . . Power Chain Reactions 1 | . 1 . . . Alert | -11 -10 -10 -9 -8 ------- Run | Yrd Mat Min Mat Mat Maximum Alert Level . | . . . . . Low Security (%) 100 | 100 100 100 100 100 Level 1 . | . . . . . Level 2 . | . . . . . Level 3 . | . . . . . Level 4 . | . . . . . Level 5 . | . . . . . High Security . | . . . . . Max Security . | . . . . . Peak Influence 150 | . 107 124 62 150 Initial 33 | . . 33 . 18 Average 23 | . 37 28 19 17 Influence Increases 678 | . 147 136 179 216 Destroy 0b10 Robot/C 420 | . 80 60 120 160 Destroy 0b10 Robot/NC 15 | . 5 . 10 . Destroy Leader 106 | . 22 10 34 40 Successful Hack 5 | . 5 . . . Disable Machine 75 | . 30 30 . 15 Destroy Structure 27 | . 5 21 . 1 Lose Combat Pursuer 30 | . . 15 15 . Influence Decreases 542 | . 60 223 133 126 Entered New Map 82 | . . 54 . 28 Time Decay 400 | . 60 169 123 48 Lost Part 60 | . . . 10 50 Squads Dispatched 4 | . 3 . . 1 Investigation 1 | . 1 . . . Extermination . | . . . . . Reinforcement 3 | . 2 . . 1 Assault . | . . . . . Garrison . | . . . . . Intercept . | . . . . . Searches Triggered . | . . . . . Construction Impeded . | . . . . . Haulers Reinforced . | . . . . . Active Scanning Responses . | . . . . . Cargo Convoy Interrupts . | . . . . . Stealth | -11 -10 -10 -9 -8 --------- Run | Yrd Mat Min Mat Mat Distress Signals 2 | . . . 1 1 Communications Jammed . | . . . . . Distress Signals . | . . . . . Times Spotted 40 | . 6 5 14 15 Peak Tracking Total 7 | . 3 3 5 7 Tactical Retreats 2 | . . 1 1 . Traps | -11 -10 -10 -9 -8 ------- Run | Yrd Mat Min Mat Mat Traps Triggered . | . . . . . Indirectly . | . . . . . Trap Hack Attempts . | . . . . . Triggered . | . . . . . Disarmed . | . . . . . Reprogrammed . | . . . . . Reused . | . . . . . Traps Extracted . | . . . . . Installed . | . . . . . Triggered . | . . . . . Machines | -11 -10 -10 -9 -8 ---------- Run | Yrd Mat Min Mat Mat Machines Disabled 5 | . 2 2 . 1 Max in Single Turn 1 | . 1 1 . 1 Machines Repaired . | . . . . . Machines Dismantled . | . . . . . Machines Sabotaged . | . . . . . Overloaded Fab Kills . | . . . . . Hacking | -11 -10 -10 -9 -8 --------- Run | Yrd Mat Min Mat Mat Machines Accessed 3 | . 1 . 2 . Terminals 2 | . 1 . 1 . Fabricators . | . . . . . Repair Stations . | . . . . . Recycling Units 1 | . . . 1 . Scanalyzers . | . . . . . Garrison Access . | . . . . . Total Hacks 15 | . 10 . 5 . Successful 11 | . 8 . 3 . Failed 4 | . 2 . 2 . Catastrophic . | . . . . . Database Lockouts . | . . . . . Manual . | . . . . . Terminals 14 | . 10 . 4 . Fabricators . | . . . . . Repair Stations . | . . . . . Recycling Units 1 | . . . 1 . Scanalyzers . | . . . . . Garrison Access . | . . . . . Terminal Hacks 11 | . 8 . 3 . Record 2 | . 2 . . . Prototype ID Bank 2 | . 1 . 1 . Alert Level 5 | . 4 . 1 . Dispatch Records 1 | . 1 . . . Zone Layout 1 | . . . 1 . Fabricator Hacks . | . . . . . Repair Station Hacks . | . . . . . Recycling Unit Hacks . | . . . . . Scanalyzer . | . . . . . Garrison Access Hacks . | . . . . . Unauthorized Hacks . | . . . . . Terminals . | . . . . . Fabricators . | . . . . . Repair Stations . | . . . . . Recycling Units . | . . . . . Scanalyzers . | . . . . . Garrison Access . | . . . . . Data Cores Recovered . | . . . . . Used . | . . . . . Hacking Detections 1 | . 1 . . . Full Trace Events 1 | . 1 . . . Feedback Events . | . . . . . Feedback Blocked . | . . . . . Robot Schematics Acquired . | . . . . . Robots Built . | . . . . . Authchips . | . . . . . Time . | . . . . . Total Robot Build Rating . | . . . . . Part Schematics Acquired . | . . . . . Parts Built . | . . . . . Authchips . | . . . . . Time . | . . . . . Total Part Build Rating . | . . . . . Part Studies Acquired . | . . . . . Parts Repaired . | . . . . . Time . | . . . . . Parts Recycled . | . . . . . Recycled Matter . | . . . . . Retrieved Matter . | . . . . . Retrieved Components . | . . . . . Parts Scanalyzed . | . . . . . Part Schematics Acquired . | . . . . . Parts Damaged . | . . . . . Bothacking | -11 -10 -10 -9 -8 ------------ Run | Yrd Mat Min Mat Mat Used RIF Installer . | . . . . . Robots Hacked . | . . . . . Non-combat . | . . . . . Combat . | . . . . . Robot Hacks Applied . | . . . . . Relay Couplers Released . | . . . . . Fabnet Peak Effective % . | . . . . . Robots Rewired . | . . . . . Allies Hacked . | . . . . . Hacks Repelled . | . . . . . Allies | -11 -10 -10 -9 -8 -------- Run | Yrd Mat Min Mat Mat Total Allies . | . . . . . Largest Group . | . . . . . Highest-Rated Group . | . . . . . Highest-Rated Ally . | . . . . . Total Orders . | . . . . . Ally Attacks . | . . . . . Total Damage . | . . . . . Kills . | . . . . . Allies Corrupted . | . . . . . Allies Melted . | . . . . . Intel | -11 -10 -10 -9 -8 ------- Run | Yrd Mat Min Mat Mat Active Infowar (turns) . | . . . . . Robot Analysis Total . | . . . . . Derelict Logs Recovered 2 | . . 2 . . Drone Launches . | . . . . . Drone Recoveries . | . . . . . Exploration | -11 -10 -10 -9 -8 ------------- Run | Yrd Mat Min Mat Mat Turns Passed 1606 | 71 196 645 432 262 Spaces Moved 824 | 49 136 354 184 101 Core 9 | 9 . . . . Treads . | . . . . . Legs 815 | 40 136 354 184 101 Wheels . | . . . . . Hover . | . . . . . Flight . | . . . . . Fastest Speed 50 | 50 120 120 190 190 Average Speed 165 | 107 120 172 190 190 Slowest Speed 260 | 120 120 260 190 190 Overloaded Moves . | . . . . . Propulsion Burnouts . | . . . . . Robots Hopped . | . . . . . Potential Cave-ins . | . . . . . Cave-ins Triggered . | . . . . . Exploration Rate (%) 27 | 4 23 71 22 16 Regions Visited 4 Branch Regions 1 Pre-discovered Areas 1 | . . 1 . . Known Exits Taken . | . . . . . Unknown Exits Taken 4 | 1 1 1 1 . Scrap Searched 1 | . . 1 . . Spaces Dug . | . . . . . Terrain Destroyed 32 | . 4 27 . 1 Melee . | . . . . . Projectile 1 | . . . . 1 AOE 31 | . 4 27 . . Terrain Rammed . | . . . . . Walls Destroyed . | . . . . . Machines Disabled . | . . . . . Actions | -11 -10 -10 -9 -8 --------- Run | Yrd Mat Min Mat Mat Total 949 | 67 151 369 222 140 Wait 4 | 3 . . . 1 Move 820 | 48 135 353 183 101 Hop . | . . . . . Pick Up 34 | 9 6 . 11 8 Fast Attach . | . . . . . Attach 20 | 6 1 3 4 6 Detach . | . . . . . Swap 5 | 1 . 1 . 3 Drop 7 | . . 1 . 6 Fire 59 | . 9 11 24 15 Melee . | . . . . . Ram . | . . . . . Kick . | . . . . . Crush . | . . . . . Escape Stasis . | . . . . . Rewire . | . . . . . Trap . | . . . . . Miscellaneous . | . . . . . Route ------- -11/Scrapyard -10/Materials -10/Mines (discovered 2 exits: *Mat x2) -9/Materials -8/Materials History --------- Turn | Location | Event 5 | -11/Scrapyard | Discovered new exit (range 16) 72 | -11/Scrapyard | Entered Materials 172 | -10/Materials | Discovered new exit (range 16) 268 | -10/Materials | Entered Mines 315 | -10/Mines | Build established: Mutant 536 | -10/Mines | Discovered new exit (range 9) 828 | -10/Mines | Assembled infested the area 842 | -10/Mines | Learned 2 Materials zone layouts 891 | -10/Mines | Discovered new exit (range 9) 903 | -10/Mines | Lost 3 parts (1n1u1w) 913 | -10/Mines | Entered Materials 913 | -9/Materials | Evolved 2 slots: Power x1, Utility x1 1326 | -9/Materials | Discovered new exit (range 10) 1345 | -9/Materials | Entered another Materials area 1345 | -8/Materials | Evolved 2 slots: Propulsion x1, Weapon x1 1607 | -8/Materials | Self-destructed Last Messages --------------- 01571_ S-10 Pest destroyed. 01572_ K-01 Serf collects debris. 01574_ S-10 Pest destroyed. 01576_ K-01 Serf collects debris. 01578_ S-10 Pest destroyed. 01579_ K-01 Serf collects debris. 01581_ S-10 Pest destroyed. 01584_ K-01 Serf collects debris. 01584_ Acquired 14 matter. 01584_ Sml. Laser destroyed. 01589_ S-10 Pest destroyed. 01592_ G-47 Trooper knocked back. 01592_ Lgt. Cannon destroyed. 01592_ Critical hit (Burn: +37). 01596_ Aluminum Leg destroyed. 01597_ G-47 Trooper destroyed. 01600_ Imp. Ion Engine destroyed. 01602_ Aluminum Leg destroyed. 01602_ Terminal disabled. 01604_ W-25 Informer sends out distress signal. Map ----- +----------------------------------------------------+ | ?????????????????????????????????????????????????? | | ?????????????????????????????????????????????????? | | ?????????????????????????????????????????????????? | | ?????????????????????????????????????????????????? | | ?????????????????????????????????????????????????? | | ?????????????????????????????????????????????????? | | ?????????????????????????????????????????????????? | | ?????????????????????????????????????????????????? | | ?????????????????????????????????????????????????? | | ?????????????????????????????????????????????????? | | ?????????????????????????????????????????????????? | | ?????????????????????????????????????????????????? | | ????????????????????#????????????????????????????? | | ????????????????????! ???????????????????????????? | | ???????????????????? ??????????????????????????? | | ????????????????????? ????????????????????????? | | ?????????????????????" ""????????????????????????? | | ?????????????????????? ""???????"""??????????????? | | ?????????????????????? ""?????? R"??????????????? | | ??????????????????????? ????? "????????????????? | | ??????????????????????? ???? ?????????????????? | | ???????????????????????#/####+######?????????????? | | ???????????????????????#s*%%*! ?????????????? | | ???????????????????????#====== ????????????? | | ???????????????????????#%=""[ ???????????? | | ????????????????????####%@"" ????????????? | | ????????????????????+ %=["T k ????????????? | | ????????????????????#### [ " * ####?????????????? | | ???????????????????????# g"" #????????????????? | | ???????????????????????# ] #????????????????? | | ###########+###########; % #????????????????? | | = = ##???????????????? | | = "#???????????????? | | "" "#???????????????? | | "" "#???????????????? | | """ [!!T#???????????????? | | ################## """ [!!"#???????????????? | | ?????????????????# """ !! "#???????????????? | | ?????????????????# ogw "#???????????????? | | ?????????????????# ##???????????????? | | ?????????????????# "#????????????????? | | ?????????????????# T#????????????????? | | ?????????????????# * "#????????????????? | | ????????????????? #????????????????? | | ????????????????? #????????????????? | | ????????????????? #########????????????????? | | ????????????????? ?????????????????????????? | | ??????????????????? ?? ?????????????????????????? | | ?????????????????????? !?????????????????????????? | | ?????????????????????????????????????????????????? | +----------------------------------------------------+ Best States ------------- Heat Dissipation 41 Energy Generation 17 Energy Capacity 290 Matter Stores 300 Matter Capacity 300 Sight Range 16 Terrain Scan Density 10 Armor Coverage 150 Evasion (%) 55 Targeting Accuracy 5 Item Schematics ----------------- None Robot Schematics ------------------ None Fabricated ------------ Nothing Repaired ---------- Nothing Studied --------- None Alien Tech Used ----------------- None Achievements -------------- DATA ERROR: Steam Global Achievement% There's More Where That Came From Challenges ------------ None Game ------ Seed SeismicTiamatSubcomponent Manual? 0 Play Time 00:15:22 Cumulative 2.0 hours Start 2026.04.06 @ 11:36:00 End 2026.04.06 @ 11:51:19 Sessions 1 Manual Loads 0 Difficulty Rogue Special Mode None Game No. 9 Rogue 9 Adventurer 0 Explorer 0 Win Type - Total 0 Types 0/0/0/0/0/0/0/0/0/0 Lore% 7 Gallery% 4 Achievement% 3 Wizard Run 0 Options --------- Layout 1 ASCII 0 Keyboard 0 Movement Mouse Keybinds 0 Fullscreen 1 Font 24/Smallcaps Map View 50x35 Zoom Use 0% Tactical HUD 1 Map Filters NONE Filters NONE Steam 1 RUN: afaa0227-63f3-4a92-a6d1-602abf405524